fUSD/lending_fUSD_20260205
["ID","MTS","AMOUNT","RATE_DAILY","PERIOD"]
[404609945,1770325916176,-1856.62,0.00043287,120]
[404609946,1770325916185,-500.0,0.00043287,120]
[404609947,1770325916194,-500.0,0.00043287,120]
[404609948,1770325916204,-500.0,0.00043287,120]
[404609949,1770325916213,-1856.6658,0.00043287,120]
[404609950,1770325916223,-500.0,0.00043287,120]
[404609951,1770325916232,-500.0,0.00043287,120]
[404609952,1770325916241,-418.09769038,0.00043287,120]
[404609953,1770325916250,-500.0,0.00043287,120]
[404609954,1770325916260,-500.0,0.00043287,120]
[404609955,1770325916269,-517.79816342,0.00043287,120]
[404609956,1770325916279,-500.0,0.00043287,120]
[404609957,1770325916288,-500.0,0.00043287,120]
[404609958,1770325916297,-500.0,0.00043287,120]
[404609959,1770325916306,-500.0,0.00043287,120]
[404609960,1770325916315,-500.0,0.00043287,120]
[404609961,1770325916324,-500.0,0.00043287,120]
[404609962,1770325916334,-427.5230542,0.00043287,120]
[404609963,1770325916343,-473.87717226,0.00043287,120]
[404609964,1770325916352,-500.0,0.00043287,120]
[404609965,1770325916361,-500.0,0.00043287,120]
[404609966,1770325916374,-500.0,0.00043287,120]
[404609967,1770325916383,-516.30008352,0.00043287,120]
[404609968,1770325916392,-500.0,0.00043287,120]
[404609969,1770325916401,-500.0,0.00043287,120]
[404609970,1770325916410,-500.0,0.00043287,120]
[404609971,1770325916419,-500.0,0.00043287,120]
[404609972,1770325916428,-500.0,0.00043287,120]
[404609973,1770325916437,-500.0,0.00043287,120]
[404609974,1770325916446,-500.0,0.00043287,120]
[404609975,1770325916455,-485.31116182,0.00043287,120]
[404609976,1770325916467,-500.0,0.00043287,120]
[404609977,1770325916476,-188.13774219,0.00043287,120]
[404609978,1770325916486,-500.0,0.00043287,120]
[404609979,1770325916495,-500.0,0.00043287,120]
[404609980,1770325916637,-500.0,0.00043287,120]
[404609981,1770325916658,-500.0,0.00043287,120]
[404609982,1770325916668,-500.0,0.00043287,120]
[404609983,1770325916677,-500.0,0.00043287,120]
[404609984,1770325916687,-500.0,0.00043287,120]
[404609985,1770325916696,-500.0,0.00043287,120]
[404609986,1770325916706,-500.0,0.00043287,120]
[404609987,1770325916716,-285.66824434,0.00043287,120]
[404609988,1770325916725,-261.74989244,0.00043287,120]
[404609989,1770325916735,-500.0,0.00043287,120]
[404609990,1770325916744,-500.0,0.00043287,120]
[404609991,1770325916754,-551.59230899,0.00043287,120]
[404609992,1770325916764,-500.0,0.00043287,120]
[404609993,1770325916774,-527.39099032,0.00043287,120]
[404609994,1770325916783,-500.0,0.00043287,120]
[404609995,1770325916792,-500.0,0.00043287,120]
[404609996,1770325916802,-500.0,0.00043287,120]
[404609997,1770325916811,-153.0,0.00043287,30]
[404609998,1770325916820,-500.0,0.00043287,120]
[404609999,1770325916830,-153.0,0.00043287,30]
[404610000,1770325916839,-500.0,0.00043287,120]
[404610001,1770325916848,-153.0,0.00043287,30]
[404610002,1770325916857,-500.0,0.00043287,120]
[404610003,1770325916869,-153.0,0.00043287,30]
[404610004,1770325916879,-500.0,0.00043287,120]
[404610005,1770325916888,-153.0,0.00043287,30]
[404610006,1770325916898,-500.0,0.00043287,120]
[404610007,1770325916907,-573.46235251,0.00043287,120]
[404610008,1770325916916,-238.57156422,0.00043287,120]
[404610009,1770325916926,-500.0,0.00043287,120]
[404610010,1770325916935,-153.0,0.00043287,30]
[404610011,1770325916944,-500.0,0.00043287,120]
[404610012,1770325916954,-154.23655022,0.00043287,120]
[404610013,1770325916964,-556.83326796,0.00043287,120]
[404610014,1770325916974,-153.0,0.00043287,30]
[404610015,1770325916983,-606.54557036,0.00043287,120]
[404610016,1770325916992,-500.0,0.00043287,120]
[404610017,1770325917002,-500.0,0.00043287,120]
[404610018,1770325917012,-248.98991472,0.00043287,30]
[404610019,1770325917021,-500.0,0.00043287,120]
[404610020,1770325917031,-500.0,0.00043287,120]
[404610021,1770325917040,-500.0,0.00043287,120]
[404610022,1770325917050,-392.30181919,0.00043287,120]
[404610023,1770325917059,-500.0,0.00043287,120]
[404610024,1770325917068,-500.0,0.00043287,120]
[404610025,1770325917077,-500.0,0.00043287,120]
[404610026,1770325917087,-500.0,0.00043287,120]
[404610027,1770325917098,-500.0,0.00043287,120]
[404610028,1770325917109,-311.19265328,0.00043287,120]
[404610029,1770325917122,-500.0,0.00043287,120]
[404610030,1770325917131,-500.0,0.00043287,120]
[404610031,1770325917142,-426.22571634,0.00043287,120]
[404610032,1770325917151,-500.0,0.00043287,120]
[404610033,1770325917160,-407.98234547,0.00043287,120]
[404610034,1770325917170,-500.0,0.00043287,120]
[404610035,1770325917180,-518.54326365,0.00043287,120]
[404610036,1770325917190,-246.09204557,0.00043287,120]
[404610037,1770325917200,-325.52167001,0.00043287,120]
[404610038,1770325917210,-350.62776908,0.00043287,120]
[404610039,1770325917219,-500.0,0.00043287,120]
[404610040,1770325917229,-500.0,0.00043287,120]
[404610041,1770325917238,-500.0,0.00043287,120]
[404610042,1770325917248,-609.77122781,0.00043287,120]
[404610043,1770325917257,-500.0,0.00043287,120]
[404610044,1770325917267,-500.0,0.00043287,120]
[404610045,1770325917276,-500.0,0.00043287,120]
[404610046,1770325917286,-500.0,0.00043287,120]
[404610047,1770325917295,-500.0,0.00043287,120]
[404610048,1770325917304,-500.0,0.00043287,120]
[404610049,1770325917314,-500.0,0.00043287,120]
[404610050,1770325917323,-500.0,0.00043287,120]
[404610051,1770325917332,-500.0,0.00043287,120]
[404610052,1770325917342,-500.0,0.00043287,120]
[404610053,1770325917351,-500.0,0.00043287,120]
[404610054,1770325917360,-500.0,0.00043287,120]
[404610055,1770325917372,-165.89712066,0.00043287,120]
[404610056,1770325917381,-500.0,0.00043287,120]
[404610057,1770325917391,-413.27318667,0.00043287,120]
[404610058,1770325917400,-500.0,0.00043287,120]
[404610059,1770325917409,-528.3020509,0.00043287,120]
[404610060,1770325917419,-591.26777914,0.00043287,120]
[404610061,1770325917428,-500.0,0.00043287,120]
[404610062,1770325917438,-500.0,0.00043287,120]
[404610063,1770325917447,-500.0,0.00043287,120]
[404610064,1770325917457,-500.0,0.00043287,120]
[404610065,1770325917466,-560.45292067,0.00043287,120]
[404610066,1770325917475,-500.0,0.00043287,120]
[404610067,1770325917485,-500.0,0.00043287,120]
[404610068,1770325917495,-500.0,0.00043287,120]
[404610069,1770325917504,-500.0,0.00043287,120]
[404610070,1770325917514,-500.0,0.00043287,120]
[404610071,1770325917523,-500.0,0.00043287,120]
[404610072,1770325917532,-500.0,0.00043287,120]
[404610073,1770325917542,-500.0,0.00043287,120]
[404610074,1770325917551,-500.0,0.00043287,120]
[404610075,1770325917560,-500.0,0.00043287,2]
[404610076,1770325917570,-500.0,0.00043287,120]
[404610077,1770325917580,-242.32065843,0.00043287,120]
[404610078,1770325917589,-500.0,0.00043287,120]
[404610079,1770325917599,-500.0,0.00043287,120]
[404610080,1770325917608,-500.0,0.00043287,120]
[404610081,1770325917620,-500.0,0.00043287,120]
[404610082,1770325917630,-500.0,0.00043287,2]
[404610083,1770325917639,-500.0,0.00043287,120]
[404610084,1770325917649,-500.0,0.00043287,120]
[404610085,1770325917658,-287.84093733,0.00043287,120]
[404610086,1770325917668,-500.0,0.00043287,120]
[404610087,1770325917677,-500.0,0.00043287,120]
[404610088,1770325917687,-500.0,0.00043287,120]
[404610089,1770325917696,-500.0,0.00043287,2]
[404610090,1770325917706,-500.0,0.00043287,120]
[404610091,1770325917715,-158.10432446,0.00043287,120]
[404610092,1770325917725,-500.0,0.00043287,120]
[404610093,1770325917734,-500.0,0.00043287,120]
[404610094,1770325917744,-606.25992387,0.00043287,120]
[404610095,1770325917753,-500.0,0.00043287,2]
[404610096,1770325917762,-513.52634229,0.00043287,120]
[404610097,1770325917772,-500.0,0.00043287,120]
[404610098,1770325917781,-500.0,0.00043287,120]
[404610099,1770325917790,-500.0,0.00043287,2]
[404610100,1770325917800,-500.0,0.00043287,120]
[404610101,1770325917809,-500.0,0.00043287,120]
[404610102,1770325917818,-551.7110358,0.00043287,120]
[404610103,1770325917827,-500.0,0.00043287,120]
[404610104,1770325917836,-500.0,0.00043287,2]
[404610105,1770325917846,-418.6417818,0.00043287,120]
[404610106,1770325917855,-500.0,0.00043287,120]
[404610107,1770325917867,-500.0,0.00043287,120]
[404610108,1770325917877,-500.0,0.00043287,2]
[404610109,1770325917886,-500.0,0.00043287,120]
[404610110,1770325917896,-500.0,0.00043287,120]
[404610111,1770325917905,-500.0,0.00043287,2]
[404610112,1770325917914,-500.0,0.00043287,120]
[404610113,1770325917923,-500.0,0.00043287,120]
[404610114,1770325917932,-592.72741208,0.00043287,2]
[404610115,1770325917942,-454.52444149,0.00043287,120]
[404610116,1770325917951,-500.0,0.00043287,120]
[404610117,1770325917960,-500.0,0.00043287,120]
[404610118,1770325917970,-482.51608597,0.00043287,120]
[404610119,1770325917979,-612.98895364,0.00043287,120]
[404610120,1770325917988,-500.0,0.00043287,120]
[404610121,1770325917998,-533.88126219,0.00043287,120]
[404610122,1770325918008,-225.53418,0.00043287,90]
[404610123,1770325918017,-225.53418,0.00043287,90]
[404610124,1770325918027,-225.53418,0.00043287,90]
[404610125,1770325918036,-259.84703686,0.00043287,120]
[404610126,1770325918045,-225.53418,0.00043287,90]
[404610127,1770325918055,-225.53418,0.00043287,90]
[404610128,1770325918064,-225.53418,0.00043287,90]
[404610129,1770325918074,-225.53418,0.00043287,90]
[404610130,1770325918083,-225.53418,0.00043287,90]
[404610131,1770325918093,-520.57785935,0.00043287,120]
[404610132,1770325918104,-225.53418,0.00043287,90]
[404610133,1770325918115,-438.59821416,0.00043287,30]
[404610134,1770325918125,-800.0,0.00043288,120]
[404610135,1770325918134,-151.0,0.00043288,120]
[404610136,1770325918144,-151.0,0.00043288,120]
[404610137,1770325918153,-158.73787069,0.00043288,120]
[404610138,1770325918163,-500.0,0.00043295,60]
[404610139,1770325918172,-1352.3,0.000433,120]
[404610140,1770325918182,-814.74,0.000433,30]
[404610141,1770325918191,-837.31456654,0.00043303,15]
[404610142,1770325918200,-150.0,0.00043309,30]
[404610143,1770325918210,-150.0,0.00043315,30]
[404610144,1770325918219,-200.0,0.00043323,9]
[404610145,1770325918229,-150.0,0.00043327,30]
[404610146,1770325918238,-108145.59334258,0.0004333,2]
[404610147,1770325918247,-302.0,0.0004333,2]
[404610148,1770325918257,-509.91,0.0004333,60]
[404610149,1770325918266,-187.179629,0.0004333,120]
[404610150,1770325918276,-187.179629,0.0004333,120]
[404610151,1770325918285,-187.179629,0.0004333,120]
[404610152,1770325918295,-187.179625,0.0004333,120]
[404610153,1770325918304,-150.0,0.00043337,30]
[404610154,1770325918314,-150.0,0.00043337,30]
[404610155,1770325918323,-150.0,0.00043351,30]
[404610156,1770325918332,-150.0,0.00043351,30]
[404610157,1770325918342,-300.22099763,0.0004336,120]
[404610158,1770325918351,-150.0,0.00043373,30]
[404610159,1770325918360,-150.0,0.00043393,30]
[404610160,1770325918372,-150.0,0.00043393,30]
[404610161,1770325918382,-3747.97486194,0.000434,30]
[404610162,1770325918391,-892.72,0.000434,90]
[404610163,1770325918401,-154.0,0.000434,120]
[404610164,1770325918410,-500.0,0.00043407,30]
[404610165,1770325918419,-150.0,0.00043423,30]
[404610166,1770325918428,-77706.0,0.00043437,30]
[404610167,1770325918437,-150.0,0.00043443,30]
[404610168,1770325918447,-150.0,0.0004345,30]
[404610169,1770325918455,-150.0,0.0004345,30]
[404610170,1770325918464,-500.0,0.00043454,120]
[404610171,1770325918474,-304.64,0.00043455,120]
[404610172,1770325918484,-150.0,0.00043461,30]
[404610173,1770325918493,-150.0,0.00043461,30]
[404610174,1770325918503,-150.0,0.00043478,30]
[404610175,1770325918512,-500.0,0.0004348,30]
[404610176,1770325918521,-150.0,0.00043488,30]
[404610177,1770325918530,-191.77931188,0.000435,30]
[404610178,1770325918540,-297.23,0.000435,120]
[404610179,1770325918549,-150.0,0.00043506,30]
[404610180,1770325918559,-150.0,0.00043518,30]
[404610181,1770325918568,-150.0,0.00043534,30]
[404610182,1770325918577,-150.0,0.00043549,30]
[404610183,1770325918587,-150.0,0.00043558,120]
[404610184,1770325918596,-500.0,0.00043561,60]
[404610185,1770325918606,-800.0,0.00043562,120]
[404610186,1770325918619,-150.0,0.00043562,30]
[404610187,1770325918628,-150.0,0.00043562,30]
[404610188,1770325918638,-150.0,0.00043562,30]
[404610189,1770325918647,-150.0,0.00043562,30]
[404610190,1770325918657,-1451.56118712,0.000436,30]
[404610191,1770325918666,-2026.47581668,0.000436,30]
[404610192,1770325918676,-200.0,0.000436,15]
[404610193,1770325918685,-200.0,0.000436,15]
[404610194,1770325918695,-150.0,0.00043607,30]
[404610195,1770325918705,-837.31456654,0.0004361,15]
[404610196,1770325918714,-150.0,0.00043614,30]
[404610197,1770325918723,-150.0,0.00043619,30]
[404610198,1770325918733,-150.0,0.00043626,30]
[404610199,1770325918743,-150.0,0.00043626,30]
[404610200,1770325918752,-150.0,0.00043647,30]
[404610201,1770325918761,-150.0,0.00043648,120]
[404610202,1770325918771,-150.0,0.00043674,120]
[404610203,1770325918780,-150.0,0.00043675,30]
[404610204,1770325918790,-150.0,0.00043675,30]
[404610205,1770325918799,-500.0,0.00043681,30]
[404610206,1770325918808,-150.0,0.00043682,120]
[404610207,1770325918817,-1089.91379941,0.0004369,120]
[404610208,1770325918827,-36244.69,0.00043698,5]
[404610209,1770325918836,-4813.95,0.00043698,5]
[404610210,1770325918845,-10394.13,0.00043698,5]
[404610211,1770325918854,-21577.8,0.00043698,5]
[404610212,1770325918863,-331.98999028,0.000437,120]
[404610213,1770325918876,-200.0,0.000437,15]
[404610214,1770325919024,-200.0,0.000437,15]
[404610215,1770325919034,-200.0,0.00043705,9]
[404610216,1770325919043,-507.0,0.00043707,26]
[404610217,1770325919053,-150.0,0.00043708,120]
[404610218,1770325919063,-150.0,0.00043709,30]
[404610219,1770325919072,-150.0,0.00043712,120]
[404610220,1770325919082,-150.0,0.00043717,30]
[404610221,1770325919092,-200.0,0.0004372,7]
[404610222,1770325919104,-200.0,0.0004372,7]
[404610223,1770325919117,-150.0,0.00043724,30]
[404610224,1770325919127,-150.0,0.00043731,30]
[404610225,1770325919137,-150.0,0.00043731,30]
[404610226,1770325919147,-150.0,0.00043754,30]
[404610227,1770325919157,-150.0,0.00043763,30]
[404610228,1770325919167,-150.0,0.00043787,30]
[404610229,1770325919178,-150.0,0.00043787,30]
[404610230,1770325919188,-206.0,0.000438,120]
[404610231,1770325919198,-672.81091102,0.000438,120]
[404610232,1770325919207,-195.14611815,0.000438,30]
[404610233,1770325919217,-789.0877347,0.000438,120]
[404610234,1770325919227,-150.55,0.000438,14]
[404610235,1770325919236,-839.0,0.000438,15]
[404610236,1770325919246,-563.0,0.000438,15]
[404610237,1770325919256,-150.0,0.00043805,30]
[404610238,1770325919266,-500.0,0.00043807,60]
[404610239,1770325919276,-150.0,0.00043809,30]
[404610240,1770325919286,-500.0,0.00043809,120]
[404610241,1770325919296,-150.0,0.00043816,30]
[404610242,1770325919306,-150.0,0.00043834,2]
[404610243,1770325919316,-600.0,0.00043835,60]
[404610244,1770325919326,-500.0,0.00043835,60]
[404610245,1770325919335,-800.0,0.00043836,120]
[404610246,1770325919345,-500.0,0.00043836,120]
[404610247,1770325919354,-151.0,0.00043836,80]
[404610248,1770325919364,-151.0,0.00043836,80]
[404610249,1770325919377,-151.0,0.00043836,80]
[404610250,1770325919387,-238.003754,0.00043836,80]
[404610251,1770325919396,-800.0,0.00043836,20]
[404610252,1770325919405,-150.0,0.00043836,120]
[404610253,1770325919415,-176.88,0.0004384,120]
[404610254,1770325919424,-206.36872516,0.0004384,120]
[404610255,1770325919434,-206.36,0.0004384,120]
[404610256,1770325919443,-287.63,0.0004384,120]
[404610257,1770325919452,-272.3,0.0004384,120]
[404610258,1770325919462,-150.0,0.00043844,30]
[404610259,1770325919471,-325.11131832,0.0004385,30]
[404610260,1770325919480,-1084.52362531,0.00043869,8]
[404610261,1770325919490,-471.64654482,0.00043869,8]
[404610262,1770325919500,-400.0,0.0004387,3]
[404610263,1770325919510,-700.0,0.0004387,3]
[404610264,1770325919520,-700.0,0.0004387,3]
[404610265,1770325919530,-400.0,0.0004387,3]
[404610266,1770325919541,-500.0,0.00043872,120]
[404610267,1770325919551,-200.0,0.00043872,120]
[404610268,1770325919560,-500.0,0.00043872,120]
[404610269,1770325919570,-520.0,0.00043872,120]
[404610270,1770325919579,-151.0,0.00043872,120]
[404610271,1770325919589,-500.0,0.00043872,120]
[404610272,1770325919599,-500.0,0.00043872,120]
[404610273,1770325919608,-6888.0,0.00043872,120]
[404610274,1770325919619,-200.0,0.00043872,120]
[404610275,1770325919629,-539.24,0.00043872,120]
[404610276,1770325919638,-3974.89234889,0.00043872,120]
[404610277,1770325919648,-200.0,0.00043872,120]
[404610278,1770325919657,-559.19188,0.00043872,120]
[404610279,1770325919667,-200.0,0.00043872,120]
[404610280,1770325919676,-579.88197956,0.00043872,120]
[404610281,1770325919686,-200.0,0.00043872,120]
[404610282,1770325919695,-601.3376128,0.00043872,120]
[404610283,1770325919704,-200.0,0.00043872,120]
[404610284,1770325919713,-623.58710448,0.00043872,120]
[404610285,1770325919723,-151.0,0.00043872,120]
[404610286,1770325919732,-646.65982734,0.00043872,120]
[404610287,1770325919741,-200.0,0.00043872,120]
[404610288,1770325919751,-500.0,0.00043872,120]
[404610289,1770325919761,-250.0,0.00043872,120]
[404610290,1770325919770,-670.58624095,0.00043872,120]
[404610291,1770325919780,-200.0,0.00043872,120]
[404610292,1770325919789,-151.0,0.00043872,120]
[404610293,1770325919799,-500.0,0.00043872,120]
[404610294,1770325919808,-250.0,0.00043872,120]
[404610295,1770325919817,-695.39793187,0.00043872,120]
[404610296,1770325919827,-200.0,0.00043872,120]
[404610297,1770325919836,-151.0,0.00043872,120]
[404610298,1770325919846,-500.0,0.00043872,120]
[404610299,1770325919855,-500.0,0.00043872,120]
[404610300,1770325919865,-250.0,0.00043872,120]
[404610301,1770325919876,-151.0,0.00043872,120]
[404610302,1770325919886,-500.0,0.00043872,120]
[404610303,1770325919896,-250.0,0.00043872,120]
[404610304,1770325919906,-500.0,0.00043872,120]
[404610305,1770325919915,-151.0,0.00043872,120]
[404610306,1770325919924,-250.0,0.00043872,120]
[404610307,1770325919934,-250.0,0.00043872,120]
[404610308,1770325919943,-500.0,0.00043872,120]
[404610309,1770325919953,-151.0,0.00043872,120]
[404610310,1770325919962,-250.0,0.00043872,120]
[404610311,1770325919972,-500.0,0.00043872,120]
[404610312,1770325919981,-250.0,0.00043872,120]
[404610313,1770325919991,-500.0,0.00043872,120]
[404610314,1770325920000,-151.0,0.00043872,120]
[404610315,1770325920009,-250.0,0.00043872,120]
[404610316,1770325920018,-500.0,0.00043872,120]
[404610317,1770325920027,-250.0,0.00043872,120]
[404610318,1770325920037,-500.0,0.00043872,120]
[404610319,1770325920047,-151.0,0.00043872,120]
[404610320,1770325920056,-250.0,0.00043872,120]
[404610321,1770325920066,-500.0,0.00043872,120]
[404610322,1770325920085,-250.0,0.00043872,120]
[404610323,1770325920105,-500.0,0.00043872,120]
[404610324,1770325920129,-151.19534675,0.00043872,120]
[404610325,1770325920149,-250.0,0.00043872,120]
[404610326,1770325920167,-500.0,0.00043872,120]
[404610327,1770325920188,-250.0,0.00043872,120]
[404610328,1770325920208,-500.0,0.00043872,120]
[404610329,1770325920230,-500.0,0.00043872,120]
[404610330,1770325920248,-250.0,0.00043872,120]
[404610331,1770325920268,-500.0,0.00043872,120]
[404610332,1770325920286,-250.0,0.00043872,120]
[404610333,1770325920301,-500.0,0.00043872,120]
[404610334,1770325920318,-500.0,0.00043872,120]
[404610335,1770325920334,-250.0,0.00043872,120]
[404610336,1770325920348,-620.0,0.00043872,120]
[404610337,1770325920364,-250.0,0.00043872,120]
[404610338,1770325920382,-250.0,0.00043872,120]
[404610339,1770325920397,-250.0,0.00043872,120]
[404610340,1770325920413,-228.31937274,0.00043872,120]
[404610341,1770325920429,-220.0,0.00043872,120]
[404610342,1770325920444,-250.0,0.00043872,120]
[404610343,1770325920460,-220.0,0.00043872,120]
[404610344,1770325920475,-250.0,0.00043872,120]
[404610345,1770325920491,-10000.0,0.00043872,120]
[404610346,1770325920507,-220.0,0.00043872,120]
[404610347,1770325920523,-250.0,0.00043872,120]
[404610348,1770325920538,-10000.0,0.00043872,120]
[404610349,1770325920555,-1052.33611618,0.00043872,120]
[404610350,1770325920570,-220.0,0.00043872,120]
[404610351,1770325920586,-250.0,0.00043872,120]
[404610352,1770325920603,-10000.0,0.00043872,120]
[404610353,1770325920622,-220.0,0.00043872,120]
[404610354,1770325920639,-151.0,0.00043872,120]
[404610355,1770325920655,-10000.0,0.00043872,120]
[404610356,1770325920675,-220.0,0.00043872,120]
[404610357,1770325920687,-156.587,0.00043872,120]
[404610358,1770325920697,-162.380719,0.00043872,120]
[404610359,1770325920707,-220.0,0.00043872,120]
[404610360,1770325920716,-168.3888056,0.00043872,120]
[404610361,1770325920726,-151.0,0.00043872,120]
[404610362,1770325920735,-220.0,0.00043872,120]
[404610363,1770325920746,-250.0,0.00043872,120]
[404610364,1770325920755,-174.61919141,0.00043872,120]
[404610365,1770325920765,-156.587,0.00043872,120]
[404610366,1770325920775,-3322.0,0.00043872,120]
[404610367,1770325920784,-220.0,0.00043872,120]
[404610368,1770325920793,-250.0,0.00043872,120]
[404610369,1770325920803,-181.08010149,0.00043872,120]
[404610370,1770325920814,-162.380719,0.00043872,120]
[404610371,1770325920824,-3322.0,0.00043872,120]
[404610372,1770325920834,-220.0,0.00043872,120]
[404610373,1770325920843,-250.0,0.00043872,120]
[404610374,1770325920853,-187.78006525,0.00043872,120]
[404610375,1770325920862,-168.3888056,0.00043872,120]
[404610376,1770325920877,-250.0,0.00043872,120]
[404610377,1770325920886,-2000.0,0.00043872,120]
[404610378,1770325920895,-194.72792766,0.00043872,120]
[404610379,1770325920906,-174.61919141,0.00043872,120]
[404610380,1770325920915,-250.0,0.00043872,120]
[404610381,1770325920924,-2000.0,0.00043872,120]
[404610382,1770325920934,-201.93286099,0.00043872,120]
[404610383,1770325920943,-181.08010149,0.00043872,120]
[404610384,1770325920952,-2000.0,0.00043872,120]
[404610385,1770325920961,-250.0,0.00043872,120]
[404610386,1770325920971,-187.78006525,0.00043872,120]
[404610387,1770325920981,-2000.0,0.00043872,120]
[404610388,1770325920990,-250.0,0.00043872,120]
[404610389,1770325921000,-194.72792766,0.00043872,120]
[404610390,1770325921009,-2000.0,0.00043872,120]
[404610391,1770325921018,-160.0,0.00043872,120]
[404610392,1770325921027,-250.0,0.00043872,120]
[404610393,1770325921037,-201.93286099,0.00043872,120]
[404610394,1770325921046,-2000.0,0.00043872,120]
[404610395,1770325921055,-160.0,0.00043872,120]
[404610396,1770325921064,-250.0,0.00043872,120]
[404610397,1770325921074,-2000.0,0.00043872,120]
[404610398,1770325921083,-160.0,0.00043872,120]
[404610399,1770325921093,-160.0,0.00043872,120]
[404610400,1770325921106,-2000.0,0.00043872,120]
[404610401,1770325921115,-160.0,0.00043872,120]
[404610402,1770325921132,-2000.0,0.00043872,120]
[404610403,1770325921142,-160.0,0.00043872,120]
[404610404,1770325921152,-160.0,0.00043872,120]
[404610405,1770325921161,-2000.0,0.00043872,120]
[404610406,1770325921172,-160.0,0.00043872,120]
[404610407,1770325921181,-160.0,0.00043872,120]
[404610408,1770325921191,-500.0,0.00043872,120]
[404610409,1770325921200,-151.0,0.00043872,120]
[404610410,1770325921210,-500.0,0.00043872,120]
[404610411,1770325921219,-156.587,0.00043872,120]
[404610412,1770325921228,-500.0,0.00043872,120]
[404610413,1770325921237,-162.380719,0.00043872,120]
[404610414,1770325921247,-500.0,0.00043872,120]
[404610415,1770325921256,-168.3888056,0.00043872,120]
[404610416,1770325921265,-500.0,0.00043872,120]
[404610417,1770325921275,-300.0,0.00043872,120]
[404610418,1770325921284,-174.61919141,0.00043872,120]
[404610419,1770325921293,-500.0,0.00043872,120]
[404610420,1770325921302,-250.0,0.00043872,120]
[404610421,1770325921312,-181.08010149,0.00043872,120]
[404610422,1770325921321,-500.0,0.00043872,120]
[404610423,1770325921330,-250.0,0.00043872,120]
[404610424,1770325921339,-187.78006525,0.00043872,120]
[404610425,1770325921349,-500.0,0.00043872,120]
[404610426,1770325921359,-250.0,0.00043872,120]
[404610427,1770325921372,-194.72792766,0.00043872,120]
[404610428,1770325921382,-500.0,0.00043872,120]
[404610429,1770325921391,-250.0,0.00043872,120]
[404610430,1770325922001,-201.93286099,0.00043872,120]
[404610431,1770325922019,-250.0,0.00043872,120]
[404610432,1770325922039,-250.0,0.00043872,120]
[404610433,1770325922055,-250.0,0.00043872,120]
[404610434,1770325922067,-250.0,0.00043872,120]
[404610435,1770325922077,-250.0,0.00043872,120]
[404610436,1770325922087,-250.0,0.00043872,120]
[404610437,1770325922098,-500.0,0.00043872,120]
[404610438,1770325922109,-250.0,0.00043872,120]
[404610439,1770325922124,-500.0,0.00043872,120]
[404610440,1770325922134,-250.0,0.00043872,120]
[404610441,1770325922144,-500.0,0.00043872,120]
[404610442,1770325922153,-250.0,0.00043872,120]
[404610443,1770325922166,-500.0,0.00043872,120]
[404610444,1770325922178,-500.0,0.00043872,120]